fUST/lending_fUST_20250804
["ID","MTS","AMOUNT","RATE_DAILY","PERIOD"]
[377284719,1754319054944,-460.0,0.00033698,2]
[377284720,1754319054954,-460.0,0.00033698,2]
[377284721,1754319054972,-460.0,0.00033698,2]
[377284722,1754319054981,-460.0,0.00033698,2]
[377284723,1754319054991,-460.0,0.00033698,2]
[377284724,1754319055001,-460.0,0.00033698,2]
[377284725,1754319055010,-460.0,0.00033698,2]
[377284726,1754319055020,-460.0,0.00033698,2]
[377284727,1754319055030,-460.0,0.00033698,2]
[377284728,1754319055039,-172.801002,0.00033698,14]
[377284729,1754319055049,-172.801002,0.00033698,14]
[377284730,1754319055058,-460.0,0.00033698,2]
[377284731,1754319055070,-460.0,0.00033698,2]
[377284732,1754319055080,-550.43,0.00033698,2]
[377284733,1754319055090,-460.0,0.00033698,2]
[377284734,1754319055100,-989.32,0.00033698,2]
[377284735,1754319055109,-460.0,0.00033698,2]
[377284736,1754319055119,-1021.41,0.00033698,2]
[377284737,1754319055128,-460.0,0.00033698,2]
[377284738,1754319055138,-460.0,0.00033698,2]
[377284739,1754319055147,-460.0,0.00033698,2]
[377284740,1754319055156,-460.0,0.00033698,2]
[377284741,1754319055166,-460.0,0.00033698,2]
[377284742,1754319055175,-460.0,0.00033698,2]
[377284743,1754319055185,-480.21,0.00033698,2]
[377284744,1754319055194,-460.0,0.00033698,2]
[377284745,1754319055203,-460.0,0.00033698,2]
[377284746,1754319055212,-3321.82,0.00033698,2]
[377284747,1754319055222,-460.0,0.00033698,2]
[377284748,1754319055231,-460.0,0.00033698,2]
[377284749,1754319055240,-460.0,0.00033698,2]
[377284750,1754319055250,-467.45,0.00033698,2]
[377284751,1754319055259,-460.0,0.00033698,2]
[377284752,1754319055269,-460.0,0.00033698,2]
[377284753,1754319055278,-239.63506895,0.00033698,2]
[377284754,1754319055287,-460.0,0.00033698,2]
[377284755,1754319055297,-638.96,0.00033698,2]
[377284756,1754319055306,-460.0,0.00033698,2]
[377284757,1754319055316,-460.0,0.00033698,2]
[377284758,1754319055326,-460.0,0.00033698,2]
[377284759,1754319055335,-460.0,0.00033698,2]
[377284760,1754319055345,-460.0,0.00033698,2]
[377284761,1754319055354,-1491.44,0.00033698,2]
[377284762,1754319055364,-460.0,0.00033698,2]
[377284763,1754319055373,-460.0,0.00033698,2]
[377284764,1754319055383,-460.0,0.00033698,2]
[377284765,1754319055392,-460.0,0.00033698,2]
[377284766,1754319055402,-960.73,0.00033698,2]
[377284767,1754319055411,-779.98,0.00033698,2]
[377284768,1754319055421,-500.95370719,0.00033698,2]
[377284769,1754319055431,-7201.28,0.00033698,2]
[377284770,1754319055541,-498.56,0.00033698,2]
[377284771,1754319055554,-632.49,0.00033698,2]
[377284772,1754319055564,-8659.62,0.00033698,2]
[377284773,1754319055576,-1249.25,0.00033698,2]
[377284774,1754319055586,-924.77,0.00033698,2]
[377284775,1754319055596,-542.78,0.00033698,2]
[377284776,1754319055606,-460.0,0.00033698,2]
[377284777,1754319055616,-460.0,0.00033698,2]
[377284778,1754319055626,-460.0,0.00033698,2]
[377284779,1754319055637,-927.45,0.00033698,2]
[377284780,1754319055647,-734.47,0.00033698,2]
[377284781,1754319055658,-460.0,0.00033698,2]
[377284782,1754319055667,-460.0,0.00033698,2]
[377284783,1754319055677,-712.84,0.00033698,2]
[377284784,1754319055687,-530.78,0.00033698,2]
[377284785,1754319055697,-1149.71,0.00033698,2]
[377284786,1754319055706,-954.46,0.00033698,2]
[377284787,1754319055716,-460.0,0.00033698,2]
[377284788,1754319055726,-293.54799264,0.00033698,2]
[377284789,1754319055736,-460.0,0.00033698,2]
[377284790,1754319055745,-867.73,0.00033698,2]
[377284791,1754319055755,-460.0,0.00033698,2]
[377284792,1754319055764,-869.37,0.00033698,2]
[377284793,1754319055774,-460.0,0.00033698,2]
[377284794,1754319055784,-460.0,0.00033698,2]
[377284795,1754319055796,-4127.27,0.00033698,2]
[377284796,1754319055807,-782.13,0.00033698,2]
[377284797,1754319055817,-817.64,0.00033698,2]
[377284798,1754319055827,-705.98,0.00033698,2]
[377284799,1754319055838,-460.0,0.00033698,2]
[377284800,1754319055848,-460.0,0.00033698,2]
[377284801,1754319055857,-1075.12,0.00033698,2]
[377284802,1754319055869,-460.0,0.00033698,2]
[377284803,1754319055879,-4997.46,0.00033698,2]
[377284804,1754319055889,-1568.94,0.00033698,2]
[377284805,1754319055898,-933.51,0.00033698,2]
[377284806,1754319055908,-678.39,0.00033698,2]
[377284807,1754319055917,-460.0,0.00033698,2]
[377284808,1754319055927,-460.0,0.00033698,2]
[377284809,1754319055936,-460.0,0.00033698,2]
[377284810,1754319055946,-460.0,0.00033698,2]
[377284811,1754319055956,-3433.53,0.00033698,2]
[377284812,1754319055966,-460.0,0.00033698,2]
[377284813,1754319055975,-460.0,0.00033698,2]
[377284814,1754319055985,-531.7,0.00033698,2]
[377284815,1754319055995,-757.96,0.00033698,2]
[377284816,1754319056005,-460.0,0.00033698,2]
[377284817,1754319056015,-679.8,0.00033698,2]
[377284818,1754319056024,-2633.19,0.00033698,2]
[377284819,1754319056034,-460.0,0.00033698,2]
[377284820,1754319056044,-1153.4,0.00033698,2]
[377284821,1754319056054,-909.57,0.00033698,2]
[377284822,1754319056063,-460.0,0.00033698,2]
[377284823,1754319056075,-460.0,0.00033698,2]
[377284824,1754319056084,-460.0,0.00033698,2]
[377284825,1754319056094,-460.0,0.00033698,2]
[377284826,1754319056104,-460.0,0.00033698,2]
[377284827,1754319056113,-1138.7,0.00033698,2]
[377284828,1754319056123,-474.4,0.00033698,2]
[377284829,1754319056133,-460.0,0.00033698,2]
[377284830,1754319056143,-1521.66,0.00033698,2]
[377284831,1754319056153,-460.0,0.00033698,2]
[377284832,1754319056162,-460.0,0.00033698,2]
[377284833,1754319056172,-460.0,0.00033698,2]
[377284834,1754319056182,-587.26,0.00033698,2]
[377284835,1754319056191,-460.0,0.00033698,2]
[377284836,1754319056200,-482.53,0.00033698,2]
[377284837,1754319056210,-460.0,0.00033698,2]
[377284838,1754319056219,-948.84,0.00033698,2]
[377284839,1754319056229,-460.0,0.00033698,2]
[377284840,1754319056239,-10274.85,0.00033698,2]
[377284841,1754319056248,-460.0,0.00033698,2]
[377284842,1754319056258,-3193.56,0.00033698,2]
[377284843,1754319056268,-593.22,0.00033698,2]
[377284844,1754319056277,-745.61,0.00033698,2]
[377284845,1754319056287,-740.23,0.00033698,2]
[377284846,1754319056296,-2509.65,0.00033698,2]
[377284847,1754319056305,-460.0,0.00033698,2]
[377284848,1754319056315,-550.94,0.00033698,2]
[377284849,1754319056324,-623.23,0.00033698,2]
[377284850,1754319056333,-3517.3,0.00033698,2]
[377284851,1754319056343,-1797.26,0.00033698,2]
[377284852,1754319056352,-535.01,0.00033698,2]
[377284853,1754319056362,-1133.86,0.00033698,2]
[377284854,1754319056371,-460.0,0.00033698,2]
[377284855,1754319056381,-460.0,0.00033698,2]
[377284856,1754319056390,-4564.97,0.00033698,2]
[377284857,1754319056399,-505.51,0.00033698,2]
[377284858,1754319056410,-460.0,0.00033698,2]
[377284859,1754319056420,-1469.8,0.00033698,2]
[377284860,1754319056430,-460.0,0.00033698,2]
[377284861,1754319056440,-460.0,0.00033698,2]
[377284862,1754319056450,-460.0,0.00033698,2]
[377284863,1754319056459,-1029.89,0.00033698,2]
[377284864,1754319056478,-460.0,0.00033698,2]
[377284865,1754319056490,-160.2834123,0.00033699,30]
[377284866,1754319056500,-578.8327873,0.00033699,30]
[377284867,1754319056512,-160.2834123,0.00033699,30]
[377284868,1754319056522,-578.8327873,0.00033699,30]
[377284869,1754319056531,-160.2834123,0.00033699,30]
[377284870,1754319056542,-578.8327873,0.00033699,30]
[377284871,1754319056552,-578.8327873,0.00033699,30]
[377284872,1754319056562,-312.16666667,0.00033699,30]
[377284873,1754319056574,-306.0,0.00033699,30]
[377284874,1754319056585,-6268.27,0.000337,14]
[377284875,1754319056594,-151.0,0.000337,14]
[377284876,1754319056604,-400.0,0.00033721,5]
[377284877,1754319056614,-154.020377,0.00033722,14]
[377284878,1754319056624,-200.0,0.00033761,120]
[377284879,1754319056634,-644.0,0.000338,2]
[377284880,1754319056644,-1500.0,0.00033868,5]
[377284881,1754319056654,-350.0,0.00033868,5]
[377284882,1754319056665,-200.0,0.00033902,15]
[377284883,1754319056675,-200.0,0.00033902,15]
[377284884,1754319056685,-200.0,0.00033902,15]
[377284885,1754319056695,-1394.0,0.00033947,3]
[377284886,1754319056705,-1700.0,0.00033949,7]
[377284887,1754319056715,-151.0,0.00033962,14]
[377284888,1754319056724,-151.0,0.00033962,14]
[377284889,1754319056735,-448.031595,0.00033968,14]
[377284890,1754319056745,-448.031595,0.00033968,14]
[377284891,1754319056755,-731.774886,0.00033968,14]
[377284892,1754319056765,-731.774886,0.00033968,14]
[377284893,1754319056775,-172.801002,0.00033968,14]
[377284894,1754319056786,-172.801002,0.00033968,14]
[377284895,1754319056800,-450.0,0.00033968,5]
[377284896,1754319056813,-1500.0,0.00033968,2]
[377284897,1754319056828,-1500.0,0.00033968,5]
[377284898,1754319056838,-1500.0,0.00033968,5]
[377284899,1754319056848,-504.3092506,0.00033968,5]
[377284900,1754319056858,-1500.0,0.00033968,5]
[377284901,1754319056868,-1527.82257883,0.00033968,5]
[377284902,1754319056878,-1500.0,0.00033968,5]
[377284903,1754319056888,-154.819163,0.00033972,14]
[377284904,1754319056898,-153.358615,0.00033972,14]
[377284905,1754319056907,-151.0,0.00033972,14]
[377284906,1754319056917,-151.0,0.00033972,14]
[377284907,1754319056927,-152.552562,0.00033972,14]
[377284908,1754319056936,-155.19386,0.00033972,14]
[377284909,1754319056946,-151.0,0.00033972,14]
[377284910,1754319056956,-161.039214,0.00033972,14]
[377284911,1754319056987,-161.039214,0.00033972,14]
[377284912,1754319056997,-151.0,0.00033972,14]
[377284913,1754319057006,-151.0,0.00033972,14]
[377284914,1754319057017,-807.11999,0.00033972,14]
[377284915,1754319057026,-807.11999,0.00033972,14]
[377284916,1754319057036,-151.0,0.00033972,14]
[377284917,1754319057047,-503.21694771,0.00033972,2]
[377284918,1754319057056,-480.92,0.00033972,2]
[377284919,1754319057066,-7956.7,0.00033972,2]
[377284920,1754319057080,-581.51,0.00033972,2]
[377284921,1754319057090,-460.0,0.00033972,2]
[377284922,1754319057099,-460.0,0.00033972,2]
[377284923,1754319057109,-522.7,0.00033972,2]
[377284924,1754319057119,-1997.33,0.00033972,2]
[377284925,1754319057128,-460.0,0.00033972,2]
[377284926,1754319057138,-460.0,0.00033972,2]
[377284927,1754319057148,-460.0,0.00033972,2]
[377284928,1754319057157,-460.0,0.00033972,2]
[377284929,1754319057166,-460.0,0.00033972,2]
[377284930,1754319057176,-460.0,0.00033972,2]
[377284931,1754319057186,-556.33,0.00033972,2]
[377284932,1754319057195,-460.0,0.00033972,2]
[377284933,1754319057205,-460.0,0.00033972,2]
[377284934,1754319057214,-460.0,0.00033972,2]
[377284935,1754319057224,-460.0,0.00033972,2]
[377284936,1754319057234,-597.85,0.00033972,2]
[377284937,1754319057243,-1644.03,0.00033972,2]
[377284938,1754319057253,-490.14,0.00033972,2]
[377284939,1754319057263,-151.0,0.00033972,14]
[377284940,1754319057272,-460.0,0.00033972,2]
[377284941,1754319057282,-460.0,0.00033972,2]
[377284942,1754319057291,-654.65,0.00033972,2]
[377284943,1754319057301,-460.0,0.00033972,2]
[377284944,1754319057311,-460.0,0.00033972,2]
[377284945,1754319057322,-1138.63,0.00033972,2]
[377284946,1754319057331,-460.0,0.00033972,2]
[377284947,1754319057341,-460.0,0.00033972,2]
[377284948,1754319057351,-151.0,0.00033972,14]
[377284949,1754319057360,-460.0,0.00033972,2]
[377284950,1754319057370,-460.0,0.00033972,2]
[377284951,1754319057379,-633.48,0.00033972,2]
[377284952,1754319057389,-460.0,0.00033972,2]
[377284953,1754319057399,-186.496639,0.00033972,14]
[377284954,1754319057409,-460.0,0.00033972,2]
[377284955,1754319057419,-460.0,0.00033972,2]
[377284956,1754319057428,-460.0,0.00033972,2]
[377284957,1754319057438,-186.496639,0.00033972,14]
[377284958,1754319057447,-460.0,0.00033972,2]
[377284959,1754319057458,-151.0,0.00033972,14]
[377284960,1754319057468,-460.0,0.00033972,2]
[377284961,1754319057478,-460.0,0.00033972,2]
[377284962,1754319057487,-460.0,0.00033972,2]
[377284963,1754319057497,-460.0,0.00033972,2]
[377284964,1754319057507,-460.0,0.00033972,2]
[377284965,1754319057517,-460.0,0.00033972,2]
[377284966,1754319057526,-460.0,0.00033972,2]
[377284967,1754319057535,-460.0,0.00033972,2]
[377284968,1754319057546,-550.43,0.00033972,2]
[377284969,1754319057556,-460.0,0.00033972,2]
[377284970,1754319057566,-989.32,0.00033972,2]
[377284971,1754319057577,-460.0,0.00033972,2]
[377284972,1754319057586,-1021.41,0.00033972,2]
[377284973,1754319057600,-460.0,0.00033972,2]
[377284974,1754319057610,-460.0,0.00033972,2]
[377284975,1754319057620,-460.0,0.00033972,2]
[377284976,1754319057630,-460.0,0.00033972,2]
[377284977,1754319057640,-460.0,0.00033972,2]
[377284978,1754319057653,-460.0,0.00033972,2]
[377284979,1754319057663,-480.21,0.00033972,2]
[377284980,1754319057673,-460.0,0.00033972,2]
[377284981,1754319057682,-460.0,0.00033972,2]
[377284982,1754319057692,-3321.82,0.00033972,2]
[377284983,1754319057702,-460.0,0.00033972,2]
[377284984,1754319057712,-460.0,0.00033972,2]
[377284985,1754319057722,-467.45,0.00033972,2]
[377284986,1754319057732,-460.0,0.00033972,2]
[377284987,1754319057742,-460.0,0.00033972,2]
[377284988,1754319057752,-460.0,0.00033972,2]
[377284989,1754319057762,-638.96,0.00033972,2]
[377284990,1754319057772,-460.0,0.00033972,2]
[377284991,1754319057782,-460.0,0.00033972,2]
[377284992,1754319057796,-460.0,0.00033972,2]
[377284993,1754319057806,-460.0,0.00033972,2]
[377284994,1754319057816,-151.0,0.00033972,14]
[377284995,1754319057972,-460.0,0.00033972,2]
[377284996,1754319057982,-1491.44,0.00033972,2]
[377284997,1754319057991,-460.0,0.00033972,2]
[377284998,1754319058001,-460.0,0.00033972,2]
[377284999,1754319058011,-460.0,0.00033972,2]
[377285000,1754319058020,-460.0,0.00033972,2]
[377285001,1754319058030,-960.73,0.00033972,2]
[377285002,1754319058039,-779.98,0.00033972,2]
[377285003,1754319058049,-7201.28,0.00033972,2]
[377285004,1754319058059,-498.56,0.00033972,2]
[377285005,1754319058069,-632.49,0.00033972,2]
[377285006,1754319058078,-8659.62,0.00033972,2]
[377285007,1754319058088,-1249.25,0.00033972,2]
[377285008,1754319058098,-924.77,0.00033972,2]
[377285009,1754319058108,-542.78,0.00033972,2]
[377285010,1754319058118,-460.0,0.00033972,2]
[377285011,1754319058128,-460.0,0.00033972,2]
[377285012,1754319058137,-460.0,0.00033972,2]
[377285013,1754319058147,-927.45,0.00033972,2]
[377285014,1754319058157,-734.47,0.00033972,2]
[377285015,1754319058166,-460.0,0.00033972,2]
[377285016,1754319058176,-460.0,0.00033972,2]
[377285017,1754319058185,-712.84,0.00033972,2]
[377285018,1754319058195,-530.78,0.00033972,2]
[377285019,1754319058204,-1149.71,0.00033972,2]
[377285020,1754319058212,-954.46,0.00033972,2]
[377285021,1754319058222,-443.30051619,0.00033972,2]
[377285022,1754319058366,-16.69948381,0.00033972,2]
[377285023,1754319058376,-460.0,0.00033972,2]
[377285024,1754319058385,-867.73,0.00033972,2]
[377285025,1754319058395,-460.0,0.00033972,2]
[377285026,1754319058404,-869.37,0.00033972,2]
[377285027,1754319058414,-460.0,0.00033972,2]
[377285028,1754319058423,-460.0,0.00033972,2]
[377285029,1754319058435,-729.26278826,0.00033972,2]
[377285030,1754319059850,-436.68438848,0.00033972,2]
[377285031,1754319059862,-2961.32282326,0.00033972,2]
[377285032,1754319059871,-782.13,0.00033972,2]
[377285033,1754319059881,-817.64,0.00033972,2]
[377285034,1754319059891,-460.0,0.00033972,2]
[377285035,1754319059900,-460.0,0.00033972,2]
[377285036,1754319059912,-1075.12,0.00033972,2]
[377285037,1754319059922,-460.0,0.00033972,2]
[377285038,1754319059932,-4997.46,0.00033972,2]
[377285039,1754319059941,-705.98,0.00033972,2]
[377285040,1754319059951,-1568.94,0.00033972,2]
[377285041,1754319059960,-933.51,0.00033972,2]
[377285042,1754319059970,-678.39,0.00033972,2]
[377285043,1754319059979,-195.90214543,0.00033972,2]
[377285044,1754319059988,-460.0,0.00033972,2]
[377285045,1754319060091,-460.0,0.00033972,2]
[377285046,1754319060102,-460.0,0.00033972,2]
[377285047,1754319060112,-3426.03928746,0.00033972,2]
[377285048,1754319060132,-7.49071254,0.00033972,2]
[377285049,1754319060142,-505.99,0.00033972,2]
[377285050,1754319060153,-460.0,0.00033972,2]
[377285051,1754319060162,-531.7,0.00033972,2]
[377285052,1754319060172,-757.96,0.00033972,2]
[377285053,1754319060182,-460.0,0.00033972,2]
[377285054,1754319060192,-679.8,0.00033972,2]
[377285055,1754319060203,-727.39165324,0.00033972,2]
[377285056,1754319060384,5000.0,0.0003031,2]
[377285057,1754319060415,374.72,0.0003031,30]
[377285058,1754319063707,1896.49789182,0.0003031,2]
[377285059,1754319063731,3103.50210818,0.0003031,2]
[377285060,1754319066167,3605.21804445,0.0003031,7]
[377285061,1754319079622,5000.0,0.0003031,2]
[377285062,1754319095806,5000.0,0.0003031,2]
[377285063,1754319100586,150.0,0.00026116,2]
[377285065,1754319111291,3141.27984737,0.0003031,2]
[377285066,1754319111315,1858.72015263,0.0003031,2]
[377285067,1754319118578,333.09,0.00029626,30]
[377285068,1754319118969,333.09,0.00030137,30]
[377285069,1754319127796,5000.0,0.0003031,2]
[377285070,1754319145223,5000.0,0.0003031,2]
[377285071,1754319163861,5000.0,0.0003031,2]
[377285072,1754319180153,2475.09984737,0.0003031,2]
[377285073,1754319180184,2524.90015263,0.0003031,2]
[377285074,1754319188719,259.07,0.0003031,30]
[377285075,1754319195735,5000.0,0.0003031,2]
[377285076,1754319197499,202.073677,0.00029767,2]
[377285077,1754319220822,5000.0,0.0003031,2]
[377285078,1754319239445,5000.0,0.0003031,2]
[377285079,1754319254881,2013.95617037,0.0003031,2]
[377285080,1754319254906,2986.04382963,0.0003031,2]
[377285081,1754319258516,230.28,0.00029826,30]
[377285082,1754319258940,230.28,0.00030137,30]
[377285083,1754319272848,5000.0,0.0003031,2]
[377285084,1754319283502,221.754574,0.00025246,2]
[377285085,1754319283849,161.68517467,0.00025507,2]
[377285086,1754319291842,5000.0,0.0003031,2]
[377285087,1754319308317,5000.0,0.0003031,2]
[377285088,1754319324928,1169.9564217,0.0003031,2]
[377285089,1754319324957,3830.0435783,0.0003031,2]
[377285090,1754319326998,179.11,0.0003031,30]
[377285091,1754319342422,5000.0,0.0003031,2]
[377285092,1754319348123,10990.8464217,0.00029733,2]
[377285093,1754319348147,8986.9884008,0.00029733,2]
[377285094,1754319358729,5000.0,0.0003031,2]
[377285095,1754319374542,5000.0,0.0003031,2]
[377285096,1754319390117,1013.0115992,0.0003031,2]
[377285097,1754319390143,3986.9884008,0.0003031,2]
[377285098,1754319396536,159.21,0.0003031,30]
[377285099,1754319406277,5000.0,0.0003031,2]
[377285100,1754319423185,5000.0,0.0003031,2]
[377285101,1754319439324,5000.0,0.0003031,2]
[377285102,1754319454672,853.8015992,0.0003031,2]
[377285103,1754319454702,4146.1984008,0.0003031,2]
[377285104,1754319470281,5000.0,0.0003031,2]
[377285105,1754319486045,5000.0,0.0003031,2]
[377285106,1754319500802,5853.8015992,0.00029778,2]
[377285107,1754319500980,2112.8046328,0.00029778,2]
[377285108,1754319502811,5000.0,0.0003031,2]
[377285109,1754319519510,5000.0,0.0003031,2]
[377285110,1754319534981,5000.0,0.0003031,2]
[377285111,1754319549040,654.56138687,0.0003031,2]
[377285112,1754319551149,2232.63398033,0.0003031,2]
[377285113,1754319551173,2767.36601967,0.0003031,2]
[377285114,1754319567136,5000.0,0.0003031,2]
[377285115,1754319582573,5000.0,0.0003031,2]
[377285116,1754319590895,276.5677795,0.0003031,2]
[377285117,1754319595488,60117.83,0.00030276,30]
[377285118,1754319599675,5000.0,0.0003031,2]
[377285119,1754319603284,500.0,0.00025205,2]
[377285120,1754319603477,500.0,0.00025205,2]
[377285121,1754319604944,956.06620083,0.00030309,2]
[377285122,1754319604970,643.93379917,0.00030309,2]
[377285123,1754319610029,500.0,0.00025205,2]
[377285124,1754319610455,500.0,0.00025205,2]
[377285125,1754319610833,500.0,0.00025205,2]
[377285126,1754319611205,500.0,0.00025205,2]
[377285127,1754319611631,400.5698971,0.00025205,2]
[377285128,1754319615309,5000.0,0.0003031,2]
[377285129,1754319631394,5000.0,0.0003031,2]
[377285130,1754319647271,5000.0,0.0003031,2]
[377285131,1754319662173,327.28069344,0.0003031,2]
[377285132,1754319663071,1628.21561029,0.0003031,2]
[377285133,1754319663099,3371.78438971,0.0003031,2]
[377285134,1754319673985,154.096408,0.00025824,20]
[377285135,1754319678453,5000.0,0.0003031,2]
[377285136,1754319694552,5000.0,0.0003031,2]
[377285137,1754319710464,5000.0,0.0003031,2]
[377285138,1754319726212,1474.11920229,0.0003031,2]
[377285139,1754319726237,3525.88079771,0.0003031,2]
[377285140,1754319734088,154.096408,0.00028558,20]
[377285141,1754319736128,163.631364,0.00013699,2]
[377285142,1754319736346,163.631364,0.0002911,2]
[377285145,1754319741698,5000.0,0.0003031,2]
[377285146,1754319757580,5000.0,0.0003031,2]
[377285147,1754319760116,190.764427,0.000297,2]
[377285148,1754319773038,5000.0,0.0003031,2]
[377285149,1754319781018,801.99563929,0.0003031,2]
[377285150,1754319781041,4198.00436071,0.0003031,2]
[377285151,1754319789279,5000.0,0.0003031,2]
[377285152,1754319792324,5000.0,0.00030276,30]
[377285153,1754319797716,4959.42109984,0.0003031,2]
[377285154,1754319806102,842.57453945,0.0003031,2]
[377285155,1754319806127,4157.42546055,0.0003031,2]
[377285156,1754319822163,5000.0,0.0003031,2]
[377285157,1754319827480,162928.9174698,0.00030276,120]
[377285158,1754319838198,5000.0,0.0003031,2]
[377285159,1754319839713,2998.97,0.0003,10]
[377285160,1754319841584,2843.60453945,0.000303,25]
[377285161,1754319841607,20000.0,0.000303,25]
[377285162,1754319841629,20000.0,0.000303,25]
[377285163,1754319841651,20000.0,0.000303,25]
[377285164,1754319841673,20000.0,0.000303,25]
[377285165,1754319841695,20000.0,0.000303,25]
[377285166,1754319841718,20000.0,0.000303,25]
[377285167,1754319841740,20000.0,0.000303,25]
[377285168,1754319854008,5000.0,0.0003,2]
[377285169,1754319868523,-66770.0,0.000303,25]
[377285170,1754319869583,5000.0,0.0003,2]
[377285171,1754319884459,10000.0,0.00029428,2]
[377285172,1754319885842,5000.0,0.0003,2]
[377285173,1754319887315,176.7025245,0.00028784,2]
[377285174,1754319893015,666.0,0.00029351,2]
[377285175,1754319903732,5000.0,0.0003,2]
[377285176,1754319919425,5000.0,0.0003,2]
[377285177,1754319934013,-318.94,0.00030137,30]
[377285178,1754319934046,-261.70845254,0.00030198,2]
[377285179,1754319934079,-299.02,0.00030289,10]
[377285180,1754319934112,-632.56,0.00030289,3]
[377285181,1754319934147,-300.0,0.00030298,2]
[377285182,1754319934182,-400.0,0.00030298,2]
[377285183,1754319934214,-800.0,0.00030298,2]
[377285184,1754319934245,-179.40814277,0.00030299,25]
[377285185,1754319934275,-500.0,0.00030299,2]
[377285186,1754319934307,-441.3890108,0.00030299,2]
[377285187,1754319934338,-500.0,0.00030299,2]
[377285188,1754319934371,-500.0,0.00030299,2]
[377285189,1754319934402,-500.0,0.00030299,2]
[377285190,1754319934433,-530.16393733,0.00030299,2]
[377285191,1754319934465,-500.0,0.00030299,2]
[377285192,1754319934497,-500.0,0.00030299,2]
[377285193,1754319934531,-525.30710495,0.00030299,2]
[377285194,1754319934562,-500.0,0.00030299,2]
[377285195,1754319934592,-500.0,0.00030299,2]
[377285196,1754319934622,-500.0,0.00030299,2]
[377285197,1754319934653,-500.0,0.00030299,2]
[377285198,1754319934684,-123.00670322,0.00030299,2]
[377285199,1754319935125,-516.2,0.00030289,10]
[377285200,1754319935155,-376.99329678,0.00030299,2]
[377285201,1754319935189,-500.0,0.00030299,2]
[377285202,1754319935222,-500.0,0.00030299,2]
[377285203,1754319935255,-525.30710495,0.00030299,2]
[377285204,1754319935286,-500.0,0.00030299,2]
[377285205,1754319935316,-500.0,0.00030299,2]
[377285206,1754319935348,-500.0,0.00030299,2]
[377285207,1754319935378,-500.0,0.00030299,2]
[377285208,1754319935407,-500.0,0.00030299,2]
[377285209,1754319935439,-500.0,0.00030299,2]
[377285210,1754319935468,-500.0,0.00030299,2]
[377285211,1754319935503,-525.30710495,0.00030299,2]
[377285212,1754319935533,-500.0,0.00030299,2]
[377285213,1754319935563,-616.61882582,0.00030299,2]
[377285214,1754319935593,-500.0,0.00030299,2]
[377285215,1754319935630,-500.0,0.00030299,2]
[377285216,1754319935661,-500.0,0.00030299,2]
[377285217,1754319935693,-500.0,0.00030299,2]
[377285218,1754319935729,-353.84023005,0.00030299,2]
[377285219,1754319936006,-171.4668749,0.00030299,2]
[377285220,1754319936037,-500.0,0.00030299,2]
[377285221,1754319936069,-500.0,0.00030299,2]